fUSD/lending_fUSD_20240918
["ID","MTS","AMOUNT","RATE_DAILY","PERIOD"]
[338449090,1726644639964,-702.89368575,0.00013,2]
[338449337,1726644642869,-1255.06367634,0.00013,2]
[338449339,1726644642880,-427.18428536,0.00013,2]
[338449341,1726644642896,-537.88,0.00013,2]
[338449344,1726644642907,-935.05871083,0.00013,2]
[338449346,1726644642919,-653.44587086,0.00013,2]
[338449348,1726644642930,-7993.45022661,0.00013,2]
[338449350,1726644642942,-496.30113721,0.00013,2]
[338449604,1726644645911,-3026.39999999,0.00013,2]
[338450240,1726644663984,172.99,0.00010129,2]
[338450254,1726644676967,159.67,0.00010959,2]
[338450285,1726644706315,350.0,0.0001264,2]
[338450331,1726644732195,254.03,0.00012637,2]
[338450335,1726644732803,60.8508847,0.00010719,2]
[338450336,1726644732833,181.7791153,0.00010719,2]
[338450407,1726644763954,-1814.6323,0.000128,2]
[338450408,1726644763988,-450.0,0.000129,2]
[338450409,1726644764019,-2944.8768,0.000129,2]
[338450411,1726644764050,-1000.0,0.000129,2]
[338450412,1726644764080,-329.68868578,0.000129,2]
[338450413,1726644764112,-5906.33435876,0.000129,2]
[338450414,1726644764143,-510.12053839,0.00012973,2]
[338450415,1726644764172,-262.63293722,0.00012973,2]
[338450416,1726644764203,-242.63,0.00012983,2]
[338450417,1726644764237,-24456.81867964,0.00013,2]
[338450418,1726644764274,-3082.26570021,0.00013,2]
[338450461,1726644790844,400.0,0.000124,4]
[338450463,1726644792032,900.0,0.000125,4]
[338450467,1726644794210,6.66601069,0.000126,4]
[338450468,1726644794241,1393.33398931,0.000126,4]
[338450471,1726644796572,539.31383631,0.000127,4]
[338450472,1726644796634,1360.68616369,0.000127,4]
[338450814,1726644997785,167.57,0.00012506,2]
[338450815,1726644997994,167.57,0.00012527,2]
[338450816,1726644998255,167.57,0.00012548,2]
[338450817,1726644998411,167.57,0.00012569,2]
[338450910,1726645039778,271.7669781,0.00012506,2]
[338450911,1726645039807,1339.31411355,0.00012506,2]
[338450912,1726645039835,2302.73314179,0.00012506,2]
[338450913,1726645039863,2302.73314179,0.00012506,2]
[338450914,1726645039894,1426.07388972,0.00012506,2]
[338450915,1726645039924,1193.85698044,0.00012506,2]
[338450916,1726645039952,1199.74395809,0.00012506,2]
[338450917,1726645039976,8875.44779652,0.00012506,2]
[338450927,1726645044797,21861.94942464,0.000125,2]
[338451082,1726645137215,177.85,0.0001258,2]
[338451108,1726645158916,517.29,0.000126,2]
[338451201,1726645348285,184.08,0.00012391,2]
[338451202,1726645386581,408.99,0.00012,15]
[338451203,1726645393800,231.28,0.00010441,2]
[338451204,1726645408867,250.0,0.00012327,2]
[338451205,1726645629966,200.0,0.000124,4]
[338451206,1726645632015,500.0,0.000125,4]
[338451207,1726645634389,700.0,0.000126,4]
[338451208,1726645674436,258.64,0.00012252,2]
[338451209,1726645700388,155.64,0.00010959,2]
[338451210,1726645746086,500.0,0.0001511,120]
[338451211,1726645780379,500.0,0.0001511,120]
[338451212,1726645792244,500.0,0.0001511,120]
[338451213,1726645793059,500.0,0.0001511,120]
[338451214,1726645793967,500.0,0.0001511,120]
[338451215,1726645794776,500.0,0.0001511,120]
[338451216,1726645795679,500.0,0.0001511,120]
[338451217,1726645797227,500.0,0.0001511,120]
[338451218,1726645803801,500.0,0.0001511,120]
[338451221,1726645805804,48.79759044,0.0001511,120]
[338451222,1726645808187,1000.0,0.00012286,2]
[338451225,1726645831950,-544.57707993,0.000127,4]
[338451226,1726645831962,-418.54007673,0.000127,4]
[338451227,1726645831975,-36.88284334,0.000127,4]
[338451228,1726645831985,-231.28,0.00012705,2]
[338451229,1726645831995,-150.01,0.000128,3]
[338451230,1726645832040,-3948.6597215,0.000128,3]
[338451231,1726645832331,-4703.16269307,0.000128,3]
[338451232,1726645832388,-305.49567903,0.000128,3]
[338451237,1726645837731,-511.9713,0.000128,3]
[338451240,1726645837825,-485.50248003,0.000128,3]
[338451241,1726645837835,-990.05893689,0.000128,14]
[338451242,1726645837845,-1300.0,0.000128,4]
[338451243,1726645837856,-150.0,0.00012877,2]
[338451244,1726645837867,-450.0,0.000129,2]
[338451245,1726645837878,-1104.9926,0.000129,2]
[338451246,1726645837888,-165.86849631,0.000129,2]
[338451247,1726645837900,-153.73177365,0.000129,2]
[338451248,1726645837912,-428.04,0.000129,2]
[338451249,1726645837922,-200.0,0.000129,4]
[338451250,1726645837933,-5889.63522482,0.000129,2]
[338451251,1726645837942,-2601.3546717,0.000129,2]
[338451252,1726645837952,-499.99,0.0001299,2]
[338451253,1726645837963,-152.81,0.0001299,2]
[338451254,1726645837973,-2398.98490248,0.00012999,2]
[338451255,1726645837982,-100050.99026022,0.00013,2]
[338451343,1726645839918,-266.84695524,0.00013,2]
[338451344,1726645839984,-20106.592846,0.00013,2]
[338451345,1726645840052,-219.79245718,0.000129,2]
[338451346,1726645840064,-83.09595882,0.00013,2]
[338451347,1726645840075,-415.1,0.00013,2]
[338451394,1726645842889,-9493.0405304,0.00013,2]
[338451395,1726645842902,-394.58101345,0.00013,2]
[338451396,1726645842917,-1732.88242047,0.00013,2]
[338451397,1726645842930,-707.3898016,0.00013,2]
[338451398,1726645842941,-604.07802196,0.00013,2]
[338451399,1726645842953,-5626.523833,0.00013,2]
[338451400,1726645842970,-296.13443335,0.00013,2]
[338451401,1726645842982,-1320.96412888,0.00013,2]
[338451402,1726645842994,-430.65367495,0.00013,2]
[338451404,1726645843770,-640.224,0.00013,2]
[338451405,1726645843784,-3079.99995,0.00013,2]
[338451406,1726645843795,-2421.6,0.00013,2]
[338451407,1726645843807,-6301.93181486,0.00013,2]
[338451408,1726645843820,-595.1409718,0.00013,2]
[338451409,1726645843832,-629.33194625,0.00013,2]
[338451410,1726645843841,-1497.54304975,0.00013,2]
[338451411,1726645843863,-767.00700092,0.00013,2]
[338451412,1726645843875,-353610.5441278,0.00013,2]
[338451415,1726645868170,500.0,0.00015,120]
[338451416,1726645869470,500.0,0.00015,120]
[338451417,1726645874137,500.0,0.00015,120]
[338451418,1726645877006,500.0,0.00015,120]
[338451419,1726645878668,500.0,0.00015,120]
[338451420,1726645880556,500.0,0.00015,120]
[338451421,1726645882054,500.0,0.00015,120]
[338451422,1726645883512,500.0,0.00015,120]
[338451423,1726645885274,500.0,0.00015,120]
[338451424,1726645887159,500.0,0.00015,120]
[338451425,1726645888833,500.0,0.00015,120]
[338451426,1726645904499,221.7,0.00010926,2]
[338451427,1726646070272,973.43,0.00012512,2]
[338451429,1726646200717,172.99,9.952e-05,2]
[338451430,1726646244264,258.64,0.00012454,2]
[338451431,1726646273974,1050.0,0.00011,2]
[338451432,1726646285777,620.92,0.00012439,2]
[338451433,1726646311498,200.0,0.00012499,2]
[338451440,1726646341773,235.72,0.00012487,2]
[338451493,1726646404912,250.0,0.00012472,2]
[338451500,1726646415251,210.61,0.00010586,2]
[338451791,1726646710728,172.99,9.959e-05,2]
[338451819,1726646729651,11510.0,0.000126,5]
[338451883,1726646787030,153.75,0.00010959,2]
[338451919,1726646823275,840.0,0.00012426,2]
[338451954,1726646871434,372.07,0.00012426,2]
[338451962,1726646878659,445.92,0.00012223,2]
[338451985,1726646903679,250.0,0.00012222,2]
[338452050,1726646974511,224.63,0.00010601,2]
[338452082,1726647000158,252.31,0.00012223,2]
[338452086,1726647003061,150.0,0.00012222,2]
[338452087,1726647003273,150.0,0.00012222,2]
[338452088,1726647003449,150.0,0.00012222,2]
[338452089,1726647003643,233.70424288,0.00012222,2]
[338452137,1726647031908,-263.0,0.0001285,10]
[338452139,1726647031919,-224.63,0.00012865,2]
[338452141,1726647031931,-812.77123,0.0001287,2]
[338452142,1726647031941,-812.30712981,0.0001287,2]
[338452143,1726647031971,-0.46410019,0.0001287,2]
[338452144,1726647031981,-812.77124,0.0001287,2]
[338452145,1726647031991,-812.77123,0.0001287,2]
[338452146,1726647032002,-812.77123,0.0001287,2]
[338452147,1726647032012,-148.94149806,0.0001287,2]
[338452148,1726647032024,-663.82974194,0.0001287,2]
[338452149,1726647032033,-153.02382,0.0001287,2]
[338452150,1726647032043,-153.02382,0.0001287,2]
[338452151,1726647032052,-153.02382,0.0001287,2]
[338452152,1726647032062,-150.0,0.00012899,2]
[338452153,1726647032071,-173.61826801,0.000129,2]
[338452154,1726647032081,-553.85087018,0.000129,2]
[338452155,1726647032093,-265.54802982,0.000129,2]
[338452156,1726647032103,-927.66141928,0.000129,2]
[338452157,1726647032126,-1457.23788072,0.000129,2]
[338452158,1726647032136,-161.14214811,0.000129,2]
[338452159,1726647032145,-5591.94308077,0.000129,2]
[338452160,1726647032156,-1523.14014281,0.0001299,2]
[338452161,1726647032166,-152.81,0.0001299,2]
[338452162,1726647032175,-152.81,0.0001299,2]
[338452163,1726647032185,-152.81,0.0001299,2]
[338452164,1726647032194,-5414.36557811,0.00012993,2]
[338452165,1726647032210,-1273.13157543,0.00012993,2]
[338452200,1726647038372,-286.07990566,0.00012993,2]
[338452202,1726647038381,-484.0671814,0.00012993,2]
[338452204,1726647038391,-1757.4267584,0.00012993,2]
[338452206,1726647038400,-4407.1325859,0.00012993,2]
[338452208,1726647038409,-2622.8814285,0.00012993,2]
[338452211,1726647038421,-516.0,0.00013,2]
[338452213,1726647038430,-234676.70760204,0.00013,2]
[338452241,1726647039950,-302.21,0.00013,2]
[338452242,1726647040092,-30221.0,0.00013,2]
[338452243,1726647040147,-5192.66580833,0.00013,2]
[338452597,1726647224908,155.37,0.00012438,2]
[338452599,1726647224958,155.37,0.00012442,2]
[338452600,1726647225093,155.37,0.00012446,2]
[338452601,1726647225320,155.37,0.00012449,2]
[338452602,1726647225521,155.37,0.00012453,2]
[338452604,1726647225747,155.37,0.00012457,2]
[338452605,1726647226171,155.37,0.00012461,2]
[338452606,1726647226253,155.37,0.00012465,2]
[338452607,1726647226630,155.37,0.00012469,2]
[338452608,1726647226841,155.37,0.00012473,2]
[338452610,1726647227052,155.37,0.00012477,2]
[338452612,1726647227328,155.37,0.00012481,2]
[338452615,1726647227532,155.37,0.00012484,2]
[338452617,1726647227940,155.37,0.00012488,2]
[338452618,1726647228206,155.37,0.00012492,2]
[338452620,1726647228371,155.37,0.00012496,2]
[338452621,1726647228597,155.37,0.000125,2]
[338452698,1726647302369,250.0,0.00012428,2]
[338452704,1726647307230,152.51,0.0001244,2]
[338452731,1726647330011,500.0,0.00012448,2]
[338452750,1726647346401,218.38,0.00012448,2]
[338452764,1726647356427,328.0,0.00012448,2]
[338452782,1726647367862,152.24,0.00010959,2]
[338452822,1726647415201,220.28,0.00012211,2]
[338452856,1726647445931,186.03,0.00012211,2]
[338452872,1726647457237,214.53,0.00010293,2]
[338452874,1726647457546,214.53,0.00012557,2]
[338452943,1726647505442,176.63,0.00012211,2]
[338453051,1726647624843,250.0,0.00012194,2]
[338453068,1726647634723,150.0,0.00012476,2]
[338453323,1726647846754,500.0,0.00012376,2]
[338453352,1726647871345,737.6,0.00012454,2]
[338453355,1726647875467,159.51,0.00010959,2]
[338453474,1726647975758,205.9,0.00010549,2]
[338453503,1726647995033,188.57,0.00012454,2]
[338453506,1726648000979,186.03,0.00012446,2]
[338453511,1726648007330,238.76,0.00012446,2]
[338453617,1726648129315,250.0,0.00012544,2]
[338453763,1726648232189,-205.9,0.00012813,2]
[338453764,1726648232198,-916.38987,0.0001287,2]
[338453765,1726648232208,-173.09318205,0.000129,2]
[338453766,1726648232218,-161.1421481,0.000129,2]
[338453767,1726648232227,-361.33023562,0.000129,2]
[338453768,1726648232237,-2113.7726627,0.00012984,2]
[338453769,1726648232315,-655.08169987,0.00012984,2]
[338453770,1726648232326,-1161.35257624,0.00012984,2]
[338453771,1726648232337,-1184.24886143,0.00012984,2]
[338453784,1726648238418,-11393.4063641,0.00012984,2]
[338453785,1726648238428,-152.81,0.0001299,2]
[338453786,1726648238437,-496.288,0.00012993,2]
[338453787,1726648238446,-175.909,0.00012993,2]
[338453788,1726648238455,-665.5266859,0.00012993,2]
[338453789,1726648238464,-264.6897031,0.00012993,2]
[338453790,1726648238474,-6997.9113528,0.00012993,2]
[338453792,1726648238483,-714.4707905,0.00012993,2]
[338453793,1726648238492,-3739.964404,0.00012993,2]
[338453795,1726648238501,-109020.34427958,0.00013,2]
[338453916,1726648244106,-2797.79959091,0.00013,2]
[338453920,1726648246330,-260.41334137,0.000129,2]
[338453961,1726649433604,-320.5427,0.000128,2]
[338453962,1726649433615,-1473.82310643,0.000129,2]
[338453963,1726649433626,-300.0,0.00012999,2]
[338453964,1726649433635,-2655.63419357,0.00013,2]
[338453965,1726649438278,-3066.31050722,0.00013,2]
[338453966,1726649438333,-13873.00526364,0.00013,2]
[338453967,1726649438344,-12475.36716589,0.00013,2]
[338453968,1726649438443,-1117.92172209,0.00013,2]
[338453969,1726649438606,-1082.63522344,0.00013,2]
[338454008,1726649440389,-5721.82951196,0.00013,2]
[338454010,1726649440401,-511.55425225,0.00013,2]
[338454036,1726649443445,-11844.66451459,0.00013,2]
[338454044,1726649447115,-1158.38919522,0.00013,2]
[338454045,1726649447127,-250.0,0.00013,2]
[338454069,1726649473329,294.06,0.00013149,30]
[338454146,1726649507032,150.0,0.00011688,2]
[338454442,1726649644173,200.0,0.00011595,2]
[338454508,1726649679832,181.0,0.00015,120]
[338454662,1726649899367,395.16004784,0.00012618,2]
[338454663,1726650127828,223.67,0.00010959,2]
[338454664,1726650326057,2000.0,0.00011,2]
[338454665,1726650343171,2000.0,0.00012,3]
[338454666,1726650426762,273.0,0.00010959,2]
[338454667,1726650427351,500.0,0.00010959,2]
[338454668,1726650427776,500.0,0.00010959,2]
[338454669,1726650430901,150.0,0.00011688,2]
[338454673,1726650578435,-739.14647998,0.00012699,2]
[338454674,1726650626504,279.52883182,0.00010764,2]
[338454675,1726650630313,176.43,0.00010291,2]
[338454687,1726650632214,-24.48108502,0.00012699,2]
[338454689,1726650632224,-225.51891498,0.00012764,2]
[338454690,1726650632246,-294.15884645,0.00012764,2]
[338454691,1726650632282,-3014.517,0.00012764,2]
[338454697,1726650637521,-250.74435529,0.00012793,2]
[338454698,1726650637579,-49.25564471,0.00012793,2]
[338454699,1726650637588,-650.74435529,0.000128,2]
[338454700,1726650637636,-2415.10004471,0.000128,2]
[338454701,1726650637647,-5349.63173349,0.0001284,2]
[338454702,1726650637657,-150.0,0.00012863,2]
[338454703,1726650637666,-256.31,0.00012864,2]
[338454704,1726650637675,-172.09,0.00012864,2]
[338454705,1726650637684,-496.04,0.00012864,2]
[338454706,1726650637694,-3199.36,0.00012864,2]
[338454707,1726650637703,-150.85,0.00012864,2]
[338454708,1726650637712,-250.0,0.00012864,2]
[338454709,1726650637721,-273.83,0.00012864,2]
[338454710,1726650637730,-250.0,0.00012864,2]
[338454711,1726650637740,-162.33,0.00012864,2]
[338454713,1726650637752,-250.0,0.00012864,2]
[338454714,1726650637761,-20877.19,0.00012864,2]
[338454715,1726650637771,-6837.14,0.00012864,2]
[338454716,1726650637781,-541.4,0.00012864,2]
[338454717,1726650637790,-500.0,0.00012864,3]
[338454718,1726650637800,-397.41,0.00012864,2]
[338454720,1726650637811,-1000.0,0.00012864,2]
[338454721,1726650637822,-857.3,0.00012867,2]
[338454722,1726650637832,-397.41,0.00012867,2]
[338454723,1726650637842,-1228.78705,0.0001287,2]
[338454724,1726650637851,-397.41,0.0001287,2]
[338454725,1726650637862,-500.45160684,0.00012873,2]
[338454726,1726650637872,-397.41,0.00012874,2]
[338454727,1726650637881,-499.99,0.00012877,2]
[338454728,1726650637891,-1318.87,0.00012877,2]
[338454729,1726650637902,-397.41,0.00012877,2]
[338454730,1726650637912,-397.41,0.00012881,2]
[338454731,1726650637922,-150.0,0.00012881,2]
[338454732,1726650637933,-999.99,0.00012881,2]
[338454733,1726650637943,-1703.46,0.00012881,2]
[338454734,1726650637952,-150.0,0.00012882,2]
[338454735,1726650637963,-397.41,0.00012884,2]
[338454736,1726650637972,-820.6,0.00012884,2]
[338454737,1726650637982,-150.0,0.00012886,2]
[338454738,1726650637991,-397.41,0.00012887,2]
[338454739,1726650638002,-150.0,0.00012889,2]
[338454740,1726650638011,-150.0,0.00012889,2]
[338454741,1726650638021,-397.41,0.00012891,2]
[338454742,1726650638031,-150.0,0.00012892,2]
[338454743,1726650638040,-397.41,0.00012894,2]
[338454744,1726650638049,-150.0,0.00012897,2]
[338454745,1726650638059,-397.41,0.00012898,2]
[338454746,1726650638069,-2941.976,0.000129,2]
[338454747,1726650638078,-184.0075,0.000129,2]
[338454748,1726650638088,-3684.9522,0.000129,2]
[338454749,1726650638097,-827.350988,0.000129,2]
[338454750,1726650638107,-171.91852514,0.000129,2]
[338454751,1726650638118,-61589.7382,0.000129,2]
[338454752,1726650638130,-2118.4782,0.000129,2]
[338454753,1726650638139,-932.31,0.000129,2]
[338454754,1726650638149,-173.42378679,0.000129,2]
[338454755,1726650638159,-207.18361201,0.000129,2]
[338454756,1726650638168,-232.14682235,0.000129,2]
[338454757,1726650638179,-157.63939403,0.000129,2]
[338454758,1726650638189,-326.7592409,0.000129,2]
[338454759,1726650638200,-397.41,0.00012901,2]
[338454760,1726650638211,-150.0,0.00012901,2]
[338454761,1726650638221,-150.0,0.00012902,2]
[338454762,1726650638230,-397.41,0.00012904,2]
[338454763,1726650638240,-397.41,0.00012908,2]
[338454764,1726650638250,-150.0,0.00012908,2]
[338454765,1726650638260,-150.0,0.00012908,2]
[338454766,1726650638270,-397.41,0.00012911,2]
[338454767,1726650638279,-397.41,0.00012915,2]
[338454768,1726650638290,-150.0,0.00012915,2]
[338454769,1726650638299,-150.0,0.00012915,2]
[338454770,1726650638310,-397.41,0.00012918,2]
[338454771,1726650638324,-397.41,0.00012921,2]
[338454772,1726650638334,-150.0,0.00012923,2]
[338454773,1726650638346,-397.41,0.00012925,2]
[338454774,1726650638355,-397.41,0.00012928,2]
[338454775,1726650638367,-150.0,0.00012931,2]
[338454776,1726650638378,-150.0,0.00012936,2]
[338454777,1726650638387,-1500.0,0.00012938,2]
[338454778,1726650638398,-210.0,0.0001294,2]
[338454779,1726650638408,-150.0,0.00012943,2]
[338454780,1726650638419,-150.0,0.00012946,2]
[338454781,1726650638428,-150.0,0.00012948,2]
[338454782,1726650638439,-150.0,0.00012948,2]
[338454783,1726650638450,-150.0,0.00012953,2]
[338454784,1726650638461,-150.0,0.00012953,2]
[338454785,1726650638470,-150.0,0.00012958,2]
[338454786,1726650638482,-150.0,0.00012962,2]
[338454787,1726650638492,-150.0,0.00012962,2]
[338454788,1726650638503,-150.0,0.00012962,2]
[338454789,1726650638514,-1500.0,0.00012966,2]
[338454790,1726650638525,-150.0,0.00012968,2]
[338454791,1726650638535,-13486.0,0.00012968,2]
[338454792,1726650638544,-150.0,0.00012968,2]
[338454793,1726650638554,-5378.533,0.00012968,2]
[338454794,1726650638563,-1146.0,0.00012968,2]
[338454795,1726650638572,-500.0,0.00012973,2]
[338454796,1726650638581,-150.0,0.00012973,2]
[338454797,1726650638591,-150.0,0.00012973,2]
[338454798,1726650638599,-1500.0,0.00012977,2]
[338454799,1726650638611,-150.0,0.00012979,2]
[338454800,1726650638620,-197.45493291,0.00012985,2]
[338454801,1726650638629,-150.0,0.00012986,2]
[338454802,1726650638640,-275.15591882,0.00012986,2]
[338454803,1726650638652,-152.69,0.0001299,2]
[338454804,1726650638662,-150.0,0.0001299,2]
[338454805,1726650638672,-185.585875,0.0001299,2]
[338454806,1726650638681,-185.585875,0.0001299,2]
[338454807,1726650638691,-528.963082,0.0001299,2]
[338454808,1726650638700,-528.963082,0.0001299,2]
[338454809,1726650638709,-157.377364,0.0001299,2]
[338454810,1726650638718,-151.0,0.0001299,2]
[338454811,1726650638728,-151.0,0.00012993,2]
[338454812,1726650638738,-151.0,0.00012993,2]
[338454813,1726650638748,-151.0,0.00012993,2]
[338454814,1726650638757,-151.0,0.00012993,2]
[338454815,1726650638769,-1662.910107,0.00012993,2]
[338454816,1726650638779,-1870.523251,0.00012993,2]
[338454817,1726650638789,-1870.523251,0.00012993,2]
[338454818,1726650638798,-202.220429,0.00012993,2]
[338454819,1726650638808,-564.216569,0.00012993,2]
[338454820,1726650638817,-270.224997,0.00012993,2]
[338454821,1726650638826,-564.216569,0.00012993,2]
[338454822,1726650638835,-270.224997,0.00012993,2]
[338454823,1726650638845,-3104.010885,0.00012993,2]
[338454824,1726650638854,-4465.642013,0.00012993,2]
[338454825,1726650638864,-3104.010885,0.00012993,2]
[338454826,1726650638874,-151.0,0.00012993,2]
[338454827,1726650638884,-151.0,0.00012993,2]
[338454828,1726650638894,-247.882217,0.00012993,2]
[338454829,1726650638903,-247.882217,0.00012993,2]
[338454830,1726650638913,-247.882217,0.00012993,2]
[338454831,1726650638923,-247.882217,0.00012993,2]
[338454832,1726650638932,-399.403444,0.00012993,2]
[338454833,1726650638941,-399.403444,0.00012993,2]
[338454834,1726650638950,-399.403444,0.00012993,2]
[338454835,1726650638959,-399.403444,0.00012993,2]
[338454836,1726650638969,-158.842792,0.00012993,2]
[338454837,1726650638978,-158.842792,0.00012993,2]
[338454838,1726650638987,-158.842792,0.00012993,2]
[338454839,1726650638996,-158.842792,0.00012993,2]
[338454840,1726650639005,-151.0,0.00012993,2]
[338454841,1726650639014,-151.108509,0.00012993,2]
[338454842,1726650639024,-488.189429,0.00012993,2]
[338454843,1726650639034,-488.189429,0.00012993,2]
[338454844,1726650639044,-488.189429,0.00012993,2]
[338454845,1726650639054,-488.189429,0.00012993,2]
[338454846,1726650639064,-151.0,0.00012993,2]
[338454847,1726650639074,-151.0,0.00012993,2]
[338454848,1726650639083,-151.0,0.00012993,2]
[338454849,1726650639094,-151.0,0.00012993,2]
[338454850,1726650639103,-151.0,0.00012993,2]
[338454851,1726650639114,-151.0,0.00012993,2]
[338454852,1726650639124,-151.0,0.00012993,2]
[338454853,1726650639134,-1012.217334,0.00012993,2]
[338454854,1726650639144,-1012.217334,0.00012993,2]
[338454855,1726650639153,-563.852681,0.00012993,2]
[338454856,1726650639163,-563.852681,0.00012993,2]
[338454857,1726650639173,-1012.217334,0.00012993,2]
[338454858,1726650639183,-1012.217334,0.00012993,2]
[338454859,1726650639193,-563.852681,0.00012993,2]
[338454860,1726650639203,-563.852681,0.00012993,2]
[338454861,1726650639213,-151.0,0.00012993,2]
[338454862,1726650639223,-151.0,0.00012993,2]
[338454863,1726650639232,-151.0,0.00012993,2]
[338454864,1726650639243,-151.0,0.00012993,2]
[338454865,1726650639253,-290.839749,0.00012993,2]
[338454866,1726650639263,-290.839749,0.00012993,2]
[338454867,1726650639273,-290.839749,0.00012993,2]
[338454868,1726650639284,-290.839749,0.00012993,2]
[338454869,1726650639293,-10000.0,0.00012993,2]
[338454870,1726650639302,-10000.0,0.00012993,2]
[338454871,1726650639312,-10000.0,0.00012993,2]
[338454872,1726650639322,-10000.0,0.00012993,2]
[338454873,1726650639331,-10000.0,0.00012993,2]
[338454874,1726650639341,-10000.0,0.00012993,2]
[338454875,1726650639351,-10000.0,0.00012993,2]
[338454876,1726650639361,-10000.0,0.00012993,2]
[338454877,1726650639371,-10000.0,0.00012993,2]
[338454878,1726650639380,-10000.0,0.00012993,2]
[338454879,1726650639390,-10000.0,0.00012993,2]
[338454880,1726650639399,-10000.0,0.00012993,2]
[338454881,1726650639409,-151.0,0.00012993,2]
[338454882,1726650639418,-151.0,0.00012993,2]
[338454883,1726650639427,-151.0,0.00012993,2]
[338454884,1726650639437,-151.0,0.00012993,2]
[338454885,1726650639446,-8525.441124,0.00012993,2]
[338454887,1726650639455,-185.585875,0.00012993,2]
[338454889,1726650639465,-185.585875,0.00012993,2]
[338454891,1726650639475,-156.276168,0.00012993,2]
[338454893,1726650639484,-1433.581544,0.00012993,2]
[338454895,1726650639493,-1433.581544,0.00012993,2]
[338454897,1726650639503,-1433.581544,0.00012993,2]
[338454898,1726650639512,-1433.581544,0.00012993,2]
[338454900,1726650639521,-151.0,0.00012993,2]
[338454901,1726650639531,-151.0,0.00012993,2]
[338454902,1726650639540,-151.0,0.00012993,2]
[338454903,1726650639550,-151.0,0.00012993,2]
[338454904,1726650639559,-152.049031,0.00012993,2]
[338454905,1726650639571,-192.279056,0.00012993,2]
[338454906,1726650639580,-192.279056,0.00012993,2]
[338454907,1726650639592,-192.279056,0.00012993,2]
[338454908,1726650639603,-192.279056,0.00012993,2]
[338454909,1726650639615,-192.279056,0.00012993,2]
[338454910,1726650639625,-192.279056,0.00012993,2]
[338454911,1726650639635,-192.279056,0.00012993,2]
[338454912,1726650639644,-192.279056,0.00012993,2]
[338454913,1726650639653,-840.0049755,0.00012993,2]
[338454914,1726650639663,-151.0,0.00012993,2]
[338454915,1726650639671,-151.0,0.00012993,2]
[338454916,1726650639681,-152.224618,0.00012993,2]
[338454917,1726650639690,-152.434996,0.00012993,2]
[338454918,1726650639700,-152.434996,0.00012993,2]
[338454919,1726650639709,-152.434996,0.00012993,2]
[338454920,1726650639719,-152.434996,0.00012993,2]
[338454921,1726650639728,-152.434996,0.00012993,2]
[338454922,1726650639738,-151.0,0.00012993,2]
[338454923,1726650639747,-152.434996,0.00012993,2]
[338454924,1726650639756,-151.0,0.00012993,2]
[338454925,1726650639766,-151.0,0.00012993,2]
[338454926,1726650639775,-1958.648432,0.00012993,2]
[338454927,1726650639784,-151.0,0.00012993,2]